Workbook

Sheet BF-Bayliner
A3: Name (Nickname) | B3: PLZ | D3: Boot | G3: Motor | N3: Antrieb | Q3: Propeller | V3: Top Speed | Z3: Verbrauch bei Marschgeschw. | AC3: Gewicht | AE3: Trailer | AG3: Bemerkungen
D4: Nr | E4: Zus. | F4: Bau- | G4: An- | H4: Typ | I4: Hubraum | K4: V/E | L4: Zyl. | M4: je | N4: Typ | O4: Gen | P4: Unter- | Q4: Typ | R4: Mat. | S4: Blatt | T4: D | U4: S | Z4: 40 - 45 kmh | AC4: Leer | AD4: Fahrt | AE4: Hersteller | AF4: Typ
F5: jahr | G5: zahl | I5: [L] | M5: [PS] | P5: setzung | T5: ["] | U5: ["] | V5: [km/h] | W5: [kn] | X5: [rpm] | Y5: wie? | Z5: [L/km] | AA5: [L/h] | AB5: wie? | AC5: [kg] | AD5: [kg]
A6: 1 | B6: 1a | D6: 2 | E6: 3 | F6: 4 | G6: 5 | H6: 6 | I6: 7 | J6: 8 | K6: 9 | L6: 10 | M6: 11 | N6: 12 | O6: 13 | P6: 14 | Q6: 15 | R6: 16 | S6: 17 | T6: 18 | U6: 19 | V6: 20 | W6: 21 | X6: 22 | Y6: 23 | Z6: 24 | AA6: 25 | AB6: 26 | AC6: 27 | AD6: 28 | AE6: 29 | AF6: 30 | AG6: 31
A7: Markus Sager (Feldschloesschen) | B7: 4492X | C7: 0 | D7: E6 | E7: Element | F7: 2019 | G7: 1 | H7: Merc | I7: 2 | K7: E | L7: 4 | M7: 115 | N7: AB | R7: Alu | S7: 3 | V7: 63 | Y7: GPS | AC7: 907 | AD7: 1200 | AE7: Harbeck
A8: Frank Römer (froemer) | B8: 46286 | C8: =IF(D8="",9999,IF(D8=802,2600,IF(D8<1000,D8*10,D8))) -> 0E5 | D8: 0E5 | F8: 2018 | G8: 1 | H8: Mercury | I8: 2 | K8: E | L8: 4 | M8: 80 | N8: AB | S8: 3 | AC8: 970 | AD8: 1300 | AE8: Wick | AF8: 1500
A9: Bernd (berme) | B9: 12555 | C9: =IF(D9="",9999,IF(D9=802,2600,IF(D9<1000,D9*10,D9))) -> 1401 | D9: 1401 | F9: 1994 | G9: 1 | H9: Mercury | K9: E | M9: 60 | N9: AB | P9: 1:1,83 | Q9: Mercury Spitfire | R9: Alu | S9: 4 | T9: 10.3 | U9: 14 | V9: 60 | X9: 6000 | Y9: GPS | AC9: 650
A10: Markus (Bayliner Element) | B10: 42899 | C10: =IF(D10="",9999,IF(D10=802,2600,IF(D10<1000,D10*10,D10))) -> 1600 | D10: 160 | F10: 2014 | G10: 1 | I10: 0.998 | K10: E | L10: 4 | M10: 60 | N10: AB | Q10: Standard | S10: 4 | V10: 52 | Y10: GPS | AE10: Ohlmeier | AF10: 1300
A11: Alex (Alex1607) | C11: =IF(D11="",9999,IF(D11=802,2600,IF(D11<1000,D11*10,D11))) -> 1700 | D11: 1700 | F11: 1989 | G11: 1 | H11: Merc | I11: 1.6 | K11: V | L11: 4 | M11: 75 | N11: AB | Q11: Black Max | R11: Alu | S11: 3 | T11: 12.75 | U11: 21
A12: Per (elektroschnulli) | B12: 31311 | C12: 1700 | D12: 1700 | E12: CV | F12: 1990 | G12: 1 | H12: Suzuki | I12: 2 | K12: E | L12: 4R | M12: 90 | N12: AB | R12: Alu | S12: 3 | T12: 14 | U12: 23 | V12: 62 | Y12: GPS | AC12: 700 | AE12: Harbeck | AF12: ECO Trailer
A13: Jens (krieger 1979) | C13: =IF(D13="",9999,IF(D13=802,2600,IF(D13<1000,D13*10,D13))) -> 1700 | D13: 1700 | F13: 1991 | G13: 1 | L13: 3 | M13: 90 | N13: AB
A14: Rüdiger (Suedstrand) | C14: =IF(D14="",9999,IF(D14=802,2600,IF(D14<1000,D14*10,D14))) -> 1702 | D14: 1702 | E14: LS | F14: 1996 | G14: 1 | H14: Mercu | I14: 1.4 | K14: V | L14: 3 | M14: 90 | N14: AB | Q14: propuls | R14: Comp. | S14: 4 | T14: 13 | U14: 16bis 22 | V14: 60 | AA14: 14 | AC14: 700 | AD14: 1000 | AG14: Sonderedition 40 Jahre Bayliner
A15: Jörg (Köln grillt) | B15: 50354 | C15: =IF(D15="",9999,IF(D15=802,2600,IF(D15<1000,D15*10,D15))) -> 1702 | D15: 1702 | E15: LS | F15: 1996 | G15: 1 | H15: Merc | K15: V | L15: R3 | M15: 90 | S15: 3 | AE15: Ohlmeier
A16: Olaf (OREU) | C16: =IF(D16="",9999,IF(D16=802,2600,IF(D16<1000,D16*10,D16))) -> 1750 | D16: 175 | E16: XT | F16: 2005 | G16: 1 | H16: Merc | I16: 3 | M16: 135 | N16: alpha one | O16: Gen II + | Q16: Merc | R16: Alu | T16: 14.5 | U16: 21 | V16: 69 | X16: 5000 | Y16: GPS | Z16: 0.5 | AB16: errechn. | AC16: 850 | AD16: 1100 | AE16: Ohlmeier | AF16: 1350
A17: Daniel (Westi) | C17: =IF(D17="",9999,IF(D17=802,2600,IF(D17<1000,D17*10,D17))) -> 1800 | D17: 1800 | F17: 1995 | G17: 1 | H17: Evinrude | I17: 1.7 | K17: E | L17: V4 | M17: 130 | N17: AB | AE17: Steinbacher | AF17: 1500 | AG17: Motor neu 2008 Modell 2009
A18: Roland (mätschwäng2) | C18: =IF(D18="",9999,IF(D18=802,2600,IF(D18<1000,D18*10,D18))) -> 1801 | D18: 1801 | F18: 1998 | G18: 1 | H18: Force | M18: 120 | N18: AB | P18: 1:2,00 | T18: 13 | U18: 19 | V18: 76 | Z18: 0.46 | AC18: 860 | AD18: 1100 | AE18: Harbeck | AF18: 1300kg
A19: Uwe (Ratte) | B19: 02991 | C19: =IF(D19="",9999,IF(D19=802,2600,IF(D19<1000,D19*10,D19))) -> 1802 | D19: 1802 | E19: CC | F19: 1990 | G19: 1 | H19: Merc | I19: 0,995 | K19: E | L19: 4 | M19: 50 | N19: AB | R19: Alu | S19: 3 | W19: 25 | X19: 5990 | Y19: Anzeige | AD19: 850 | AE19: TPV | AF19: 1300 | AG19: Motor 2012 neu
A20: Holger (piranha miura) | C20: =IF(D20="",9999,IF(D20=802,2600,IF(D20<1000,D20*10,D20))) -> 1802 | D20: 1802 | E20: Trop | F20: 1999 | G20: 1 | H20: Yam | I20: 2.598 | K20: V | L20: 6 | M20: 150 | N20: AB | Q20: Solas | R20: Alu | S20: 4 | T20: 14,5 | U20: 17 | V20: 75 | Y20: GPS | AE20: Safety | AF20: 2200
A21: Sascha (Waterjoe) | B21: 47179 | C21: =IF(D21="",9999,IF(D21=802,2600,IF(D21<1000,D21*10,D21))) -> 1850 | D21: 1850 | E21: LS | F21: 1997 | G21: 1 | H21: Merc | I21: 3 | K21: V | L21: R4 | M21: 140 | N21: alpha one | O21: Gen II | Q21: High 5 | S21: 5 | U21: 23 | V21: 72 | Y21: GPS | AC21: 1048 | AE21: Freewheel | AF21: 1500
A22: Karsten (Bayliner 1850) | C22: =IF(D22="",9999,IF(D22=802,2600,IF(D22<1000,D22*10,D22))) -> 1850 | D22: 1850 | E22: SS | F22: 1996 | G22: 1 | H22: Merc | I22: 4.3 | K22: V | L22: V6 | M22: 185 | N22: alpha one | S22: 5 | U22: 19 | V22: 80 | Y22: GPS | AC22: 1250 | AE22: Ohlmeier | AF22: 1700 | AG22: Sonderedition 40 Jahre Bayliner
A23: Dirk (Dirk1802) | B23: 57635 | C23: =IF(D23="",9999,IF(D23=802,2600,IF(D23<1000,D23*10,D23))) -> 1850 | D23: 1850 | E23: SS | F23: 1996 | G23: 1 | H23: Merc. | I23: 3 | J23: LX | K23: V | L23: 4R | M23: 145 | N23: alpha one | O23: GenII | Q23: Quicksilver | R23: VA | S23: 3 | U23: 21 | V23: 65 | W23: 35 | X23: 4600 | Y23: Staudruck | AA23: 15 | AB23: gesch. | AC23: 1050 | AD23: 1300 | AE23: Harbeck
A24: Tobias (zaph) | B24: 26180 | C24: =IF(D24="",9999,IF(D24=802,2600,IF(D24<1000,D24*10,D24))) -> 1850 | D24: 1850 | F24: 1997 | G24: 1 | H24: Merc | I24: 3 | J24: LX | K24: V | L24: 4R | M24: 135 | N24: alpha one | O24: Gen II | R24: Alu | S24: 3 | X24: 4800 | AE24: Brenderup | AF24: 1500 Premium
A25: Thomas (s_name) | B25: 88074 | C25: =IF(D25="",9999,IF(D25=802,2600,IF(D25<1000,D25*10,D25))) -> 1851 | D25: 1851 | E25: Capri | F25: 1992 | G25: 1 | H25: Merc | I25: 4.3 | K25: V | L25: 6 | M25: 185 | N25: alpha one | Q25: Mercruiser | R25: Alu | S25: 3 | AA25: 11 | AC25: 1120 | AD25: 1320 | AE25: Harbeck
A26: Andreas (Blue Danube) | B26: 94163 | C26: =IF(D26="",9999,IF(D26=802,2600,IF(D26<1000,D26*10,D26))) -> 1851 | D26: 1851 | E26: CB | F26: 1992 | G26: 1 | H26: Merc | I26: 3 | J26: LX | K26: V | L26: 4R | M26: 130 | N26: alpha one | Q26: High 5 | R26: VA | S26: 5 | V26: 55 | AC26: 850 | AE26: Harbeck | AF26: Ecoline
A27: Sven (Sven2209) | B27: 46147 | C27: =IF(D27="",9999,IF(D27=802,2600,IF(D27<1000,D27*10,D27))) -> 1851 | D27: 1851 | E27: CB | F27: 1993 | G27: 1 | H27: Merc | I27: 3 | K27: V | L27: 4R | M27: 135 | N27: alpha one | O27: Gen II | Q27: Solas | R27: Alu | S27: 3 | T27: 14.25 | U27: 21 | V27: 60 | X27: 4800 | Y27: GPS | AC27: 1020 | AE27: Vlemmiix | AF27: SMT1800
A28: Frank (Toni 4566) | C28: =IF(D28="",9999,IF(D28=802,2600,IF(D28<1000,D28*10,D28))) -> 1851 | D28: 1851 | E28: SS | F28: 1994 | G28: 1 | H28: Merc | I28: 3 | L28: 4R | M28: 130 | N28: alpha one | O28: Gen II | Q28: Black Max | R28: Alu | S28: 3 | T28: 14,5 13,75 | U28: 19 21 | V28: 59,3 64,8 | X28: 4000 | Y28: GPS | AE28: ASG | AF28: 1350kg | AG28: Hydrofoil
A29: (Tim 2502) | C29: =IF(D29="",9999,IF(D29=802,2600,IF(D29<1000,D29*10,D29))) -> 1851 | D29: 1851 | E29: SS | F29: 1996 | G29: 1 | H29: Merc | I29: 4.3 | J29: LX | N29: alpha one | O29: Gen II | Q29: High 5 | S29: 5 | U29: 23 | V29: 89 | AC29: 1150 | AE29: HEKU | AF29: 1350
A30: Arnd Blissenbach (SLK-Arno) | B30: 42857 | C30: =IF(D30="",9999,IF(D30=802,2600,IF(D30<1000,D30*10,D30))) -> 1851 | D30: 1851 | E30: SS | F30: 1997 | G30: 1 | H30: Merc | I30: 4.3 | J30: LX | K30: V | L30: V6 | M30: 205 | N30: alpha one | O30: Gen II | P30: 1:1,81 | Q30: Mirage Plus | R30: VA | S30: 3 | T30: 16 | U30: 21 | V30: 83 | W30: 46 | X30: 4900 | Y30: GPS | AA30: 12-18 | AB30: errechn | AC30: 1140 | AE30: Weiher | AF30: Freewheeler
A31: Peter K (DORO) | C31: =IF(D31="",9999,IF(D31=802,2600,IF(D31<1000,D31*10,D31))) -> 1920 | D31: 192 | E31: LX | F31: 2001 | G31: 1 | H31: Merc | I31: 4.3 | K31: V | L31: V6 | M31: 190 | N31: alpha one | O31: GenII | Q31: Laser | R31: VA | S31: 3 | T31: 14 | U31: 19 | V31: 72 | X31: 4500 | Y31: GPS | AA31: 16 | AB31: gemessen | AC31: 1150 | AE31: Harbeck | AF31: 2000
A32: Andre (Andre.V) | B32: 59174 | C32: 1950 | D32: 195 | E32: BR | F32: 2009 | G32: 1 | H32: Merc | I32: 3.0 | L32: 4R | M32: 130 | Q32: Black Max | R32: Alu | S32: 3 | T32: 14.25 | U32: 21 | X32: 5200 | Y32: GPS | AE32: Harbeck
A33: Detlef (det 740) | B33: 37079 | C33: =IF(D33="",9999,IF(D33=802,2600,IF(D33<1000,D33*10,D33))) -> 1950 | D33: 1950 | E33: BR | F33: 1996 | G33: 1 | H33: Merc | I33: 3 | J33: L | K33: V | L33: 4R | M33: 135 | N33: alpha one | O33: GenII | P33: 1:198 | Q33: Black Max | R33: Alu | S33: 3 | T33: 14,25 | U33: 21 | V33: 65 | X33: 4700 | Y33: GPS | AA33: 12-15 | AB33: geschätzt | AF33: 1700
A34: Fabian (heliusdh) | B34: 38461 | C34: =IF(D34="",9999,IF(D34=802,2600,IF(D34<1000,D34*10,D34))) -> 1950 | D34: 1950 | E34: CB | F34: 1990 | G34: 1 | H34: Merc | I34: 3 | K34: V | L34: 4 | M34: 135 | N34: alpha one | O34: GenI | R34: Alu | S34: 3 | AE34: Alko | AG34: verkauft
A35: Berhard (Kieler Bernhard) | B35: 24582 | C35: =IF(D35="",9999,IF(D35=802,2600,IF(D35<1000,D35*10,D35))) -> 1950 | D35: 1950 | E35: CC | F35: 1989 | G35: 1 | H35: VP | I35: 3 | J35: GLP-D | K35: V | L35: 4 | M35: 135 | N35: OMC | O35: Cobra | S35: 3 | V35: 65 | X35: 4600 | Y35: GPS | Z35: 0,7 | AB35: errechn. | AC35: 1000 | AD35: 1150 | AE35: HEKU | AF35: Tandem
A36: Stefan (Robby19Feet) | B36: 53925 | C36: =IF(D36="",9999,IF(D36=802,2600,IF(D36<1000,D36*10,D36))) -> 1950 | D36: 1950 | E36: CU | F36: 1980 | G36: 1 | H36: Volvo | I36: 5 | K36: V | L36: V8 | M36: 200 | N36: VP280Z | O36: LongShaft | P36: 1:1,15 | R36: Alu | S36: 4 | T36: 15 | U36: 23 | V36: 72 | X36: 4400 | Y36: GPS | AA36: 18 | AB36: errechn. | AC36: 1100 | AD36: 1300 | AE36: Techau | AF36: TB1700ST
A37: Frank (Bighundini) | C37: =IF(D37="",9999,IF(D37=802,2600,IF(D37<1000,D37*10,D37))) -> 1952 | D37: 1952 | E37: Capri | F37: 1996 | G37: 1 | H37: Merc | I37: 3 | J37: LX | K37: V | L37: 4R | M37: 150 | N37: alpha one | O37: Gen II | R37: VA | S37: 3
A38: Andreas (wüppse) | C38: =IF(D38="",9999,IF(D38=802,2600,IF(D38<1000,D38*10,D38))) -> 1952 | D38: 1952 | E38: Capri | F38: 1998 | G38: 1 | H38: Merc | I38: 3 | K38: V | L38: 4R | M38: 135 | N38: alpha one | O38: Gen II | Q38: Merc | R38: Alu | S38: 3 | T38: 14.5 | U38: 19 | V38: 60 | X38: 4500 | Y38: GPS | Z38: 0.6 | AA38: 16 | AB38: Sensor | AC38: 1000 | AE38: Steinbacher | AF38: 1500
A39: Roland Köhler (Rokoe) | C39: =IF(D39="",9999,IF(D39=802,2600,IF(D39<1000,D39*10,D39))) -> 1952 | D39: 1952 | E39: CC | F39: 1989 | G39: 1 | H39: Ford | I39: 5 | J39: HO | L39: V8 | M39: 200 | N39: OMC | O39: Cobra | P39: 1:1,50 | R39: Alu | S39: 3 | T39: 14.5 | U39: 19 | V39: 70 | X39: 4000 | Y39: GPS | Z39: 0.6 | AB39: geschätzt | AC39: 1000 | AD39: 1300 | AE39: Techau | AF39: TB1600
A40: Ihno (ohni33) | B40: 33813 | C40: =IF(D40="",9999,IF(D40=802,2600,IF(D40<1000,D40*10,D40))) -> 1952 | D40: 1952 | E40: CC | F40: 1989 | G40: 1 | H40: OMC | I40: 5 | K40: V | L40: V8 | M40: 220 | N40: OMC | O40: Cobra | S40: 3 | V40: 83 | X40: 4400 | Y40: GPS | AC40: 1150 | AD40: 1300 | AE40: Harbeck | AF40: 2000 | AG40: verkauft
A41: Michael (Blue D) | C41: =IF(D41="",9999,IF(D41=802,2600,IF(D41<1000,D41*10,D41))) -> 1952 | D41: 1952 | E41: CC | F41: 1995 | G41: 1 | H41: Merc | I41: 3.0 | J41: LX | K41: V | L41: 4R | M41: 135 | N41: alpha one | S41: 3 | V41: 64 | Y41: GPS | AC41: 1000 | AD41: 1300 | AE41: W.S.C.. | AF41: 1300
A42: Uwe (Judschi) | C42: =IF(D42="",9999,IF(D42=802,2600,IF(D42<1000,D42*10,D42))) -> 1952 | D42: 1952 | E42: CC | F42: 1996 | G42: 1 | H42: Merc | I42: 3 | J42: WPS | K42: V | L42: 4R | M42: 135 | N42: alpha one | O42: Gen II | P42: 1:2,00 | Q42: Merc | R42: Alu | S42: 3 | T42: 14.5 | U42: 19 | V42: 60 | X42: 4800 | Y42: GPS | Z42: 0.56 | AA42: 16 | AB42: errechn. | AE42: Ohlmeier | AF42: 1700 | AG42: Motor und Antrieb 2006 neu Boot verkauft
A43: Bernd (kiwihunter) | C43: =IF(D43="",9999,IF(D43=802,2600,IF(D43<1000,D43*10,D43))) -> 1952 | D43: 1952 | E43: CN | F43: 1989 | G43: 1 | H43: Merc | I43: 3 | K43: V | L43: 4R | M43: 116 | N43: alpha one | S43: 3 | AE43: Escort | AF43: 1700 | AG43: verkauft
A44: Axel (axelf) | C44: =IF(D44="",9999,IF(D44=802,2600,IF(D44<1000,D44*10,D44))) -> 1952 | D44: 1952 | E44: CN | F44: 1993 | G44: 1 | H44: Merc | I44: 3 | J44: L | K44: V | L44: 4R | M44: 130 | N44: alpha one | O44: Gen II | P44: 1:1,98 | Q44: Alpha4 | R44: Alu | S44: 4 | T44: 14.5 | U44: 18 | V44: 56 | W44: 30 | X44: 4600 | Y44: GPS | AC44: 900 | AD44: 1350 | AE44: Vlemmix | AF44: 1800
A45: Peter (Peter1952) | B45: NL-2729 | C45: =IF(D45="",9999,IF(D45=802,2600,IF(D45<1000,D45*10,D45))) -> 1952 | D45: 1952 | F45: 1984 | G45: 1 | H45: Volvo | K45: V | L45: 4 | M45: 130 | N45: Z-Drive | Q45: Original | R45: Alu | S45: 3 | AE45: USA | AF45: Marlin
A46: Horst (Horst 1952) | C46: =IF(D46="",9999,IF(D46=802,2600,IF(D46<1000,D46*10,D46))) -> 1952 | D46: 1952 | F46: 1993 | G46: 1 | H46: Merc | I46: 3 | K46: V | L46: 4R | M46: 135 | N46: alpha one | O46: Gen II | P46: 1:2,0 | Q46: Black Max | R46: Alu | S46: 3 | T46: 14.25 | U46: 21 | AE46: HEKU | AG46: weitere Daten folgen in der Saison
A47: Timo (bluesee) | C47: =IF(D47="",9999,IF(D47=802,2600,IF(D47<1000,D47*10,D47))) -> 1952 | D47: 1952 | F47: 1994 | G47: 1 | H47: OMC | S47: 3
A48: Holger (Holgi01) | C48: =IF(D48="",9999,IF(D48=802,2600,IF(D48<1000,D48*10,D48))) -> 1952 | D48: 1952 | F48: 2001 | G48: 1 | H48: Merc | I48: 3 | M48: 135 | N48: alpha one | O48: Gen II + | P48: 1:2,00 | Q48: Mich.Wh. | R48: Alu | S48: 3 | U48: 21 | V48: 67 | X48: 4800 | Y48: GPS | AC48: 1050 | AD48: 1300 | AE48: Harbeck | AF48: 1,6t
A49: Werner (MR TAZ) | B49: 65388 | C49: =IF(D49="",9999,IF(D49=802,2600,IF(D49<1000,D49*10,D49))) -> 2050 | D49: 2050 | E49: Calypso | F49: 1978 | G49: 1 | H49: VP | I49: 3 | K49: V | L49: 6 | M49: 170 | N49: AQ270 | R49: Alu | S49: 3 | AC49: 1500
A50: Michael (MichaelBC) | B50: 88400 | C50: 2050 | D50: 2050 | E50: BR | F50: 1994 | G50: 1 | H50: Merc | I50: 4.3 | K50: V | L50: 6 | M50: 220 | N50: alpha one | O50: Gen II | P50: 1:1,84 | Q50: Spitfire | R50: Alu | S50: 4 | T50: 14 | U50: 23 | V50: 75 | X50: 4600 | Y50: GPS | AA50: 20 | AB50: DFM | AE50: Sattelite | AF50: 1700 | AG50: Votec Motor mit Edelbrock 1409 Vergaser
A51: Mike (Mike1967) | C51: =IF(D51="",9999,IF(D51=802,2600,IF(D51<1000,D51*10,D51))) -> 2050 | D51: 2050 | E51: SS | F51: 1998 | G51: 1 | H51: Merc | I51: 3 | K51: V | L51: 4R | M51: 135 | N51: alpha one | O51: Gen II | Q51: Black Max | R51: Alu | S51: 3 | T51: 14.5 | U51: 19 | V51: 55 | Y51: GPS | Z51: 0.8 | AB51: geschätzt | AC51: 1100 | AD51: 1200
A52: Frank Jansen (easy2) | C52: =IF(D52="",9999,IF(D52=802,2600,IF(D52<1000,D52*10,D52))) -> 2050 | D52: 2050 | F52: 1991 | G52: 1 | I52: 3 | J52: MCM | M52: 140 | N52: alpha one | Q52: Michigan (gecupt) | R52: VA | S52: 3 | T52: 13 | U52: 21 | V52: 63 | X52: 5000 | Z52: 0.4 | AB52: geschätzt | AC52: 950 | AD52: 1200 | AE52: Techau | AF52: 1350T 1450 zGG
A53: Dieter (Mutinx) | C53: =IF(D53="",9999,IF(D53=802,2600,IF(D53<1000,D53*10,D53))) -> 2051 | D53: 2051 | E53: SS | F53: 1996 | G53: 1 | H53: Merc | I53: 5.7 | K53: V | L53: V8 | M53: 260 | N53: alpha one | O53: Gen II | Q53: Laser | R53: VA | S53: 3 | T53: 14 | U53: 19 | V53: 80 | X53: 3800 | Y53: Log | Z53: 0.8 | AB53: errechn. | AC53: 1300 | AD53: 1500 | AE53: Grundmeier | AF53: 2600
A54: Michael (Top-Gun) | C54: =IF(D54="",9999,IF(D54=802,2600,IF(D54<1000,D54*10,D54))) -> 2051 | D54: 2051 | E54: SS | G54: 1 | H54: Merc | I54: 4.3 | J54: LX | AG54: verkauft
A55: Marc (Ossenkop) | C55: =IF(D55="",9999,IF(D55=802,2600,IF(D55<1000,D55*10,D55))) -> 2051 | D55: 2051 | F55: 1992 | G55: 1 | H55: Merc | I55: 4.3 | K55: V | L55: V6 | M55: 205
A56: Oliver (zx6rr) | B56: 59514 | C56: =IF(D56="",9999,IF(D56=802,2600,IF(D56<1000,D56*10,D56))) -> 2052 | D56: 2052 | E56: Capri | F56: 1991 | G56: 1 | H56: Merc | I56: 3 | J56: LX | K56: V | L56: 4 | M56: 130 | N56: alpha one | O56: GenII | R56: Alu | S56: 3 | AC56: 975 | AE56: Kainz | AF56: 1300
A57: Fabian (heliusdh) | B57: 38440 | C57: =IF(D57="",9999,IF(D57=802,2600,IF(D57<1000,D57*10,D57))) -> 2052 | D57: 2052 | E57: Capri | F57: 1992 | G57: 1 | H57: Merc | I57: 4.3 | K57: V | L57: 6 | M57: 205 | N57: alpha one | O57: Gen II | R57: Alu | S57: 3 | T57: 14,5 | U57: 23 | AG57: verkauft
A58: Axel (RittiPl) | B58: 64638 | C58: 2052 | D58: 2052 | E58: CC | F58: 1992 | G58: 1 | H58: Merc | I58: 4.3 | K58: V | L58: 6 | M58: 190 | N58: alpha one | O58: Gen II | P58: 1:1,84 | Q58: Merc Spitfire | R58: Alu | S58: 4 | T58: 14 | U58: 21 | AG58: Tandem
A59: Zarske (PZarske) | B59: 09634 | C59: =IF(D59="",9999,IF(D59=802,2600,IF(D59<1000,D59*10,D59))) -> 2052 | D59: 2052 | E59: Capri | F59: 1993 | G59: 1 | H59: Merc | I59: 4.3 | J59: LX | K59: V | L59: 6 | M59: 205 | N59: alpha one | O59: Gen II | Q59: Solas | R59: VA | S59: 4 | T59: 14 | U59: 23 | AC59: 1260 | AE59: Escort
A60: Ralf Vogtlaender (RG69) | B60: 08541 | C60: 2052 | D60: 2052 | E60: LS | F60: 1994 | G60: 1 | H60: Merc | I60: 3 | K60: V | L60: 4R | M60: 140 | N60: alpha one | O60: Gen II | S60: 3
A61: Heini (Nautik 1969) | C61: =IF(D61="",9999,IF(D61=802,2600,IF(D61<1000,D61*10,D61))) -> 2052 | D61: 2052 | E61: Capri | F61: 1999 | G61: 1 | H61: Merc | I61: 4.3 | J61: l | K61: V | L61: V6 | N61: alpha one | O61: Gen II | R61: VA | S61: 3
A62: Frank (Sampera) | B62: 97xxx | C62: =IF(D62="",9999,IF(D62=802,2600,IF(D62<1000,D62*10,D62))) -> 2052 | D62: 2052 | E62: Capri | F62: 2014 | G62: 1 | H62: Merc | I62: 4.3 | J62: MPI | K62: E | L62: V6 | M62: 220 | N62: alpha one | O62: Gen II | P62: 1:1,65 | Q62: Black Max | R62: Alu | S62: 3 | T62: 14 | U62: 23 | V62: 80 | W62: 44 | X62: 4400 | Y62: GPS | AA62: 20 | AB62: geschätzt | AC62: 1450 | AD62: 1650 | AE62: Ohlmeier | AF62: MT 2000 | AG62: V IP03 (interner Vermerk)
A63: Gunther (Lark 40) | B63: 97357 | C63: =IF(D63="",9999,IF(D63=802,2600,IF(D63<1000,D63*10,D63))) -> 2052 | D63: 2052 | E63: CC | F63: 1994 | G63: 1 | H63: Merc: | I63: 3 | J63: LX | K63: V | L63: 4R | M63: 135 | N63: alpha one | O63: Gen II | Q63: Standard | R63: Alu | S63: 3 | U63: 21 | V63: 59 | W63: 32 | X63: 4800 | Y63: GPS | AB63: DFM | AE63: Harbeck | AF63: 1800
A64: Manfred (ManfredBochum) | C64: =IF(D64="",9999,IF(D64=802,2600,IF(D64<1000,D64*10,D64))) -> 2052 | D64: 2052 | E64: CK | F64: 1995 | G64: 1 | H64: Merc | I64: 4.3 | K64: V | L64: V6 | M64: 205 | N64: alpha one | O64: Gen II | P64: 1:1,81 | Q64: Merc | R64: Alu | S64: 3 | U64: 23 | V64: 80 | X64: 4800 | Y64: GPS | Z64: 0.6 | AA64: 30 | AB64: errechn. 50km/h | AE64: Dimko | AF64: 2500
A65: Bernd ( | B65: 42109 | C65: 2052 | D65: 2052 | F65: 1995 | G65: 1 | H65: Merc | I65: 4.3 | J65: LX | K65: V | L65: V6 | M65: 205 | N65: alpha one | O65: Gen II | Q65: Merc | R65: Alu | S65: 3 | U65: 21 | W65: 43 | X65: 4700 | Y65: GPS | Z65: 0.9 | AA65: 21 | AB65: Durchfl | AE65: Ohlmeier | AG65: Reisegewicht inkl. Trailer 1845kg
A66: Ralf (Jeveraner) | C66: =IF(D66="",9999,IF(D66=802,2600,IF(D66<1000,D66*10,D66))) -> 2052 | D66: 2052 | E66: CK | F66: 1998 | G66: 1 | H66: Merc | I66: 4.3 | J66: EFI | K66: E | L66: 6 | M66: 210 | N66: alpha one | O66: Gen II | Q66: Black Max | R66: Alu | S66: 3 | T66: 14 | U66: 23 | V66: 85 | X66: 4800 | Y66: GPS | AC66: 1150 | AD66: 1430 | AE66: Steinbacher | AF66: 2000 | AG66: Reisegewicht inkl. Trailer 1860kg
A67: Helmut (unnersch) | C67: =IF(D67="",9999,IF(D67=802,2600,IF(D67<1000,D67*10,D67))) -> 2052 | D67: 2052 | E67: CK | F67: 1999 | G67: 1 | H67: Merc | I67: 4.3 | K67: EFI | L67: V6 | M67: 205 | N67: alpha one | O67: Gen II + | P67: 1:1,65 | Q67: Quicksilver | R67: Alu | S67: 3 | U67: 23 | V67: 80 | Y67: GPS | Z67: 0.45 | AB67: DFM | AC67: 1250 | AD67: 1450 | AE67: Harbeck | AF67: BT 2000
A68: Reiner (denisdominik) | C68: =IF(D68="",9999,IF(D68=802,2600,IF(D68<1000,D68*10,D68))) -> 2052 | D68: 2052 | E68: CS | F68: 1997 | G68: 1 | H68: Merc | I68: 4.3 | K68: V | L68: V6 | M68: 205 | N68: alpha one | R68: Alu | S68: 3 | AE68: Heku | AF68: 1800
A69: Peter (leinser_pe) | C69: =IF(D69="",9999,IF(D69=802,2600,IF(D69<1000,D69*10,D69))) -> 2052 | D69: 2052 | E69: LS | F69: 1994 | G69: 1 | H69: Merc | I69: 4.3 | J69: LX | K69: V | L69: V6 | M69: 205 | N69: alpha one | O69: Gen II | P69: 1:1,84 | Q69: High 5 | R69: VA | S69: 5 | AA69: 20 | AB69: errechn. | AE69: Brenderup | AF69: C3-M
A70: Marvin (MalMik) | B70: 31848 | C70: =IF(D70="",9999,IF(D70=802,2600,IF(D70<1000,D70*10,D70))) -> 2052 | D70: 2052 | E70: LS | F70: 1994 | G70: 1 | H70: Merc | I70: 3 | J70: LX | K70: V | L70: 4R | M70: 130 | N70: alpha one | S70: 3 | V70: 61 | AC70: 1150 | AE70: Grundmeier | AF70: 2,0to | AG70: 12-14l/h Durchschnittsverbrauch
A71: Alex (Bratwurstsepp) | B71: 87509 | C71: 2052 | D71: 2052 | E71: LS | F71: 1995 | G71: 1 | H71: Merc | I71: 4.3 | J71: LX | K71: V | L71: V6 | M71: 190 | N71: alpha one | O71: Gen II | P71: 1:1,84 | Q71: Ballistic | R71: VA | S71: 3 | T71: 14.25 | U71: 23 | V71: 80 | X71: 4600 | Y71: GPS | AD71: 1750 | AE71: Harbeck | AF71: 1700 | AG71: ECO1700
A72: Ralph (djradi) | B72: 55126 | C72: =IF(D72="",9999,IF(D72=802,2600,IF(D72<1000,D72*10,D72))) -> 2052 | D72: 2052 | E72: LS | F72: 1995 | G72: 1 | H72: Merc | I72: 3 | J72: LX | K72: V | L72: 4R | M72: 145 | N72: alpha one | O72: GenII | Q72: Alpha4 | R72: Alu | S72: 4 | T72: 14 | U72: 20 | V72: 65 | Y72: GPS | AE72: Steinbacher | AF72: ST2
A73: Lennart (BaylinerHST) | B73: 18435 | C73: 2052 | D73: 2052 | E73: LS | F73: 1995 | G73: 1 | H73: Merc | I73: 3 | J73: LS | L73: 4R | M73: 135 | N73: alpha one | O73: Gen II | S73: 3 | AE73: Brenderup
A74: Felix (captain dietus) | C74: =IF(D74="",9999,IF(D74=802,2600,IF(D74<1000,D74*10,D74))) -> 2052 | D74: 2052 | E74: LS | F74: 1996 | G74: 1 | H74: Merc | I74: 3 | J74: LX | K74: V | L74: 4R | M74: 145 | N74: alpha one | O74: Gen II | T74: 14.5 | U74: 21 | AC74: 1150 | AD74: 1280 | AE74: Steinbacher | AF74: ST 2
A75: Detlef (Loppersumer) | B75: 26759 | C75: =IF(D75="",9999,IF(D75=802,2600,IF(D75<1000,D75*10,D75))) -> 2052 | D75: 2052 | E75: LS | F75: 1996 | G75: 1 | H75: Merc | I75: 3 | J75: LX | K75: V | L75: 4R | M75: 145 | N75: alpha one | O75: Gen II | P75: 1:1,94 | Q75: Ballistic | R75: VA | S75: 3 | T75: 14.5 | U75: 19 | AE75: Ohlmeier | AF75: MT 2000 | AG75: Hydrofoil SE 300
A76: Udo (matrix 110) | C76: =IF(D76="",9999,IF(D76=802,2600,IF(D76<1000,D76*10,D76))) -> 2052 | D76: 2052 | E76: LS | F76: 1996 | G76: 1 | H76: Merc | I76: 3 | J76: LX | K76: V | L76: 4R | M76: 140 | N76: alpha one | O76: Gen II | Q76: Black Max | R76: Alu | S76: 3 | T76: 14.25 | U76: 21 | V76: 60 | X76: 4700 | Y76: Stau | AC76: 1150 | AD76: 1300 | AE76: Her. Müller | AF76: 2000 | AG76: Fahrgebiet Rhein bei DU, NL/HR
A77: Jochen ( Red Ballooon) | B77: 70839 | C77: =IF(D77="",9999,IF(D77=802,2600,IF(D77<1000,D77*10,D77))) -> 2052 | D77: 2052 | E77: LS | F77: 1996 | G77: 1 | H77: Merc. | I77: 4.3 | J77: LX | K77: V | L77: V6 | M77: 192 | N77: alpha one | O77: Gen II | S77: 3 | AE77: Harbeck | AF77: 2000
A78: Peter (Winterp) | B78: 38268 | C78: =IF(D78="",9999,IF(D78=802,2600,IF(D78<1000,D78*10,D78))) -> 2052 | D78: 2052 | E78: LS | F78: 1996 | G78: 1 | H78: Merc | I78: 4.3 | K78: V | L78: V6 | M78: 205 | N78: alpha one | O78: Gen II | Q78: Mirage Plus | R78: VA | S78: 3 | U78: 21 | V78: 62 | X78: 4800 | Y78: GPS | AE78: US | AF78: Eigenbau
A79: Alex (Lexi 2003) | C79: =IF(D79="",9999,IF(D79=802,2600,IF(D79<1000,D79*10,D79))) -> 2052 | D79: 2052 | E79: LS | F79: 1997 | G79: 1 | H79: Merc | I79: 3 | J79: LX | K79: V | L79: 4R | M79: 135 | N79: alpha one | O79: Gen II | Q79: Merc | R79: ALU | V79: 67 | X79: 4800 | Y79: GPS | Z79: 0.6 | AC79: 1050 | AD79: 1300 | AE79: USA
A80: Harry (Harry0815) | C80: =IF(D80="",9999,IF(D80=802,2600,IF(D80<1000,D80*10,D80))) -> 2052 | D80: 2052 | E80: LS | F80: 1997 | G80: 1 | H80: Merc | I80: 3 | K80: V | L80: 4R | M80: 135 | S80: 3 | AE80: Techau
A81: Dennis (No laws) | C81: =IF(D81="",9999,IF(D81=802,2600,IF(D81<1000,D81*10,D81))) -> 2052 | D81: 2052 | E81: LS | F81: 1997 | G81: 1 | H81: Merc | I81: 3 | J81: LX | K81: V | L81: 4R | N81: alpha one | Q81: Mirage Plus | R81: VA | S81: 3 | T81: 15 | U81: 19 | AG81: Boot verkauft
A82: Holger (Illhardt) | B82: 99189 | C82: =IF(D82="",9999,IF(D82=802,2600,IF(D82<1000,D82*10,D82))) -> 2052 | D82: 2052 | E82: LS | F82: 1997 | G82: 1 | H82: Merc | I82: 3 | J82: LX | K82: V | L82: 4R | M82: 135 | N82: alpha one | O82: Gen II | Q82: High 5 | S82: 5 | AC82: 1300 | AE82: Techau
A83: Marcus (Eichhoernle) | B83: 78073 | C83: =IF(D83="",9999,IF(D83=802,2600,IF(D83<1000,D83*10,D83))) -> 2052 | D83: 2052 | E83: LS | F83: 1997 | G83: 1 | H83: Merc | I83: 4.3 | J83: LX | K83: V | L83: V6 | M83: 205 | N83: alpha one | O83: GenI I | Q83: Black Max | R83: Alu | S83: 3 | T83: 14 | U83: 23 | V83: 78 | X83: 4700 | Y83: GPS | AE83: Harbeck | AF83: BT2000
A84: Paul Bachinger | B84: 91126 | C84: =IF(D84="",9999,IF(D84=802,2600,IF(D84<1000,D84*10,D84))) -> 2052 | D84: 2052 | E84: LS | F84: 1997 | G84: 1 | H84: Merc | I84: 4.3 | J84: LXH | K84: V | L84: 6 | M84: 205 | N84: alpha one | O84: Gen II | R84: Alu | S84: 3 | T84: 13,75 | U84: 21 | V84: 78 | Y84: GPS | AC84: 1200 | AE84: Ohlmeier | AF84: 1700 | AG84: seit 2015 in Besitz
A85: Schäfer | B85: 59519 | C85: =IF(D85="",9999,IF(D85=802,2600,IF(D85<1000,D85*10,D85))) -> 2052 | D85: 2052 | E85: LS | F85: 1997 | G85: 1 | H85: Merc | I85: 3 | K85: V | L85: 4 | M85: 135 | N85: alpha one | O85: Gen II | Q85: Black Max | R85: Alu | S85: 3 | T85: 15,5 | U85: 18 | V85: 65 | X85: 4600 | Y85: Tacho | AC85: 1200 | AD85: 1650 | AE85: Steinbacher | AF85: ST2
A86: Andreas (chemo12000) | B86: 55758 | C86: =IF(D86="",9999,IF(D86=802,2600,IF(D86<1000,D86*10,D86))) -> 2052 | D86: 2052 | E86: LS | F86: 1998 | G86: 1 | H86: Merc. | I86: 3 | K86: V | L86: 4R | M86: 137 | N86: alpha one | O86: Gen II | R86: Alu | S86: 4 | T86: 14,5 | U86: 18 | V86: 57 | W86: 29 | Y86: GPS
A87: Michael Rosenbauer (plattner) | C87: =IF(D87="",9999,IF(D87=802,2600,IF(D87<1000,D87*10,D87))) -> 2052 | D87: 2052 | E87: LS | F87: 1999 | G87: 1 | H87: Merc | I87: 4.3 | K87: V | L87: V6 | M87: 190 | N87: alpha one | O87: Gen II + | P87: 1:1,81 | Q87: Ballistic | R87: VA | S87: 3 | U87: 23 | V87: 76 | Y87: GPS | Z87: 0.46 | AB87: DFM | AC87: 1250 | AD87: 1450 | AE87: Sattelite | AF87: SDL 1800 | AG87: Boot verkauft
A88: Peter (nightingale) | B88: A-1190 | C88: =IF(D88="",9999,IF(D88=802,2600,IF(D88<1000,D88*10,D88))) -> 2052 | D88: 2052 | E88: LS | F88: 1999 | G88: 1 | H88: Merc | I88: 4.3 | K88: V | L88: V6 | M88: 190 | N88: alpha one | O88: Gen II | P88: 1:1,81 | Q88: Merc | R88: Alu | S88: 3 | U88: 23 | V88: 80 | X88: 4700 | AC88: 1150 | AD88: 1400 | AE88: Steinbach MB 17 St2
A89: Andreas (Woodman) | C89: =IF(D89="",9999,IF(D89=802,2600,IF(D89<1000,D89*10,D89))) -> 2052 | D89: 2052 | E89: LS | F89: 1999 | G89: 1 | H89: Merc | I89: 4.3 | L89: V6 | M89: 205 | N89: alpha one | O89: Gen II | S89: 3 | AA89: 20 | AB89: geschätzt | AE89: Nelbach | AF89: TBN 200011
A90: Klaus Feuerlein (Klaus -Peter) | B90: 91315 | C90: =IF(D90="",9999,IF(D90=802,2600,IF(D90<1000,D90*10,D90))) -> 2052 | D90: 2052 | E90: LS | F90: 2000 | G90: 1 | H90: Merc | I90: 4.3 | K90: V | L90: V6 | M90: 190 | N90: alpha one | O90: Gen II+ | Q90: High 5 | R90: VA | S90: 5 | U90: 23 | AE90: Pilob | AF90: MTP 2700
A91: Torsten (BBG) | B91: 06406 | C91: =IF(D91="",9999,IF(D91=802,2600,IF(D91<1000,D91*10,D91))) -> 2052 | D91: 2052 | E91: LS | F91: 1997 | G91: 1 | H91: Merc | I91: 4.3 | J91: LX | K91: V | L91: 6 | M91: 190 | N91: alpha one | S91: 3 | AE91: Ohlmeier | AF91: MT 2000
A92: Rainer (RainerB) | C92: =IF(D92="",9999,IF(D92=802,2600,IF(D92<1000,D92*10,D92))) -> 2052 | D92: 2052 | E92: LX | F92: 1994 | G92: 1 | H92: Merc | I92: 3 | J92: L | K92: V | L92: 4R | M92: 135 | N92: alpha one | O92: Gen II | S92: 3 | AE92: Escort | AF92: 1700 | AG92: Mainz Winterhafen
A93: Holle (plauersee) | C93: =IF(D93="",9999,IF(D93=802,2600,IF(D93<1000,D93*10,D93))) -> 2052 | D93: 2052 | E93: lx | F93: 2000 | G93: 1 | H93: Merc | I93: 3 | M93: 130 | N93: alpha one | S93: 3
A94: Harald Hechtel (Cedrik270405) | B94: 91126 | C94: =IF(D94="",9999,IF(D94=802,2600,IF(D94<1000,D94*10,D94))) -> 2052 | D94: 2052 | F94: 1990 | G94: 1 | I94: 5 | L94: V8 | M94: 210 | N94: alpha one | O94: Gen I | Q94: High 5 | U94: 23 | AE94: ASG | AF94: 2000
A95: Michael Hillner (Seaside) | C95: =IF(D95="",9999,IF(D95=802,2600,IF(D95<1000,D95*10,D95))) -> 2052 | D95: 2052 | F95: 1990 | G95: 1 | I95: 3 | N95: alpha one | R95: Alu | S95: 3 | U95: 21+ 23 | V95: 64 | AA95: 8 -10 | AB95: je nach Prop. | AC95: 1150 | AD95: 1500 | AE95: HEKU | AF95: 1450 Tandem
A96: Martin (mattindort) | C96: =IF(D96="",9999,IF(D96=802,2600,IF(D96<1000,D96*10,D96))) -> 2052 | D96: 2052 | F96: 1990 | G96: 1 | H96: Merc | I96: 3 | K96: V | L96: 4R | M96: 136 | S96: 3 | AE96: Humbauer
A97: Sascha Reinhardt (Sat 16) | B97: 66894 | C97: =IF(D97="",9999,IF(D97=802,2600,IF(D97<1000,D97*10,D97))) -> 2052 | D97: 2052 | F97: 1990 | G97: 1 | H97: Merc | I97: 4.3 | K97: V | L97: 6 | M97: 175 | N97: alpha one | O97: Gen I | Q97: Mirage | R97: VA | S97: 3 | AE97: HEKU 1602 | AF97: 1700
A98: Carsten (ilver) | C98: =IF(D98="",9999,IF(D98=802,2600,IF(D98<1000,D98*10,D98))) -> 2052 | D98: 2052 | F98: 1992 | G98: 1 | H98: Merc | I98: 3 | K98: V | L98: 4R | M98: 140 | N98: alpha one | O98: Gen II | P98: 1:1,98 | Q98: High 5 | U98: 21 | V98: 63 | AC98: 1000 | AD98: 1200 | AE98: Harbeck | AF98: 1300
A99: Stephan (Stehle) | C99: =IF(D99="",9999,IF(D99=802,2600,IF(D99<1000,D99*10,D99))) -> 2052 | D99: 2052 | F99: 1993 | G99: 1 | I99: 4.3 | K99: MPI | N99: alpha one | O99: Gen II + | Q99: High 5 | AA99: 11 | AB99: 1/3 Mix | AC99: 1250 | AD99: 1450 | AE99: FHG | AF99: 2500
A100: Martin (Sperle) | B100: 49835 | C100: =IF(D100="",9999,IF(D100=802,2600,IF(D100<1000,D100*10,D100))) -> 2052 | D100: 2052 | F100: 1993 | G100: 1 | H100: Merc | I100: 4.3 | L100: 6 | M100: 210 | N100: alpha one | S100: 3 | AE100: Harbeck
A101: Christian (**boland**) | C101: =IF(D101="",9999,IF(D101=802,2600,IF(D101<1000,D101*10,D101))) -> 2052 | D101: 2052 | F101: 1994 | G101: 1 | H101: Merc | I101: 3 | J101: TKS | K101: V | L101: $R | M101: 135 | N101: alpha one | O101: Gen II | R101: Alu | S101: 3 | AE101: WSC | AF101: 1700
A102: Stefan (Srge01) | C102: =IF(D102="",9999,IF(D102=802,2600,IF(D102<1000,D102*10,D102))) -> 2052 | D102: 2052 | F102: 1995 | G102: 1 | H102: Merc | I102: 4.3 | J102: LX | K102: V | L102: V6 | M102: 205 | N102: alpha one | Q102: Mirage | R102: VA | S102: 3 | U102: 19 | X102: 4500 | AC102: 1300 | AE102: Wick
A103: Dirk Trautmann (FIDA) | C103: =IF(D103="",9999,IF(D103=802,2600,IF(D103<1000,D103*10,D103))) -> 2052 | D103: 2052 | F103: 1996 | G103: 1 | I103: 4.3 | M103: 205 | N103: alpha one | O103: Gen II | S103: 3 | U103: 21 | AE103: Harbeck | AF103: 1800
A104: Walter (Nobelis) | B104: 68309 | C104: =IF(D104="",9999,IF(D104=802,2600,IF(D104<1000,D104*10,D104))) -> 2052 | D104: 2052 | F104: 1999 | G104: 1 | H104: Merc | I104: 4.3 | K104: V | L104: V6 | M104: 190 | N104: alpha one | O104: GenII | S104: 3 | AC104: 1200 | AD104: 1600 | AE104: Fiberline | AF104: 2000
A105: Frank (Bayliner 2052) | C105: =IF(D105="",9999,IF(D105=802,2600,IF(D105<1000,D105*10,D105))) -> 2052 | D105: 2052 | F105: 2000 | G105: 1 | H105: Merc | I105: 4.3 | K105: V | L105: V6 | M105: 190 | S105: 3 | V105: 85 | Y105: GPS | AE105: TPV | AF105: BA 1800 | AG105: Boot verkauft
A106: Jirka (GeneralVerbal) | C106: =IF(D106="",9999,IF(D106=802,2600,IF(D106<1000,D106*10,D106))) -> 2052 | D106: 2052 | F106: 2000 | G106: 1 | H106: Merc | I106: 4.3 | K106: V | L106: V6 | M106: 190 | N106: alpha one | O106: Gen II | S106: 3 | AC106: 1200
A107: Dirk (skipper winni)VIP03 | B107: 68*** | C107: =IF(D107="",9999,IF(D107=802,2600,IF(D107<1000,D107*10,D107))) -> 2052 | D107: 2052 | F107: 2004 | G107: 1 | H107: Merc | I107: 3 | J107: L | K107: V | L107: 4R | M107: 135 | N107: alpha one | O107: Gen II | P107: 1:2,0 | Q107: Black Max | R107: Alu | S107: 3 | T107: 14.25 | U107: 21 | V107: 71 | W107: 38.3 | X107: 4800 | Y107: GPS | Z107: 0,59 | AA107: 10,46 | AB107: errechnet | AC107: 1300 | AD107: 1550 | AE107: Steinbacher | AF107: K20; 2,0to 1.920kg tat.GG | AG107: verkauft zus. 4Blatt Alu Prop 14x20
A108: Thomas (bootsfreunde.com) | C108: =IF(D108="",9999,IF(D108=802,2600,IF(D108<1000,D108*10,D108))) -> 2120 | D108: 212 | F108: 2003 | G108: 1 | H108: VP | I108: 4.3 | K108: E | L108: V6 | M108: 225 | N108: DP-S | O108: SXMTD3 | P108: 1:1,66 | Q108: F8 | R108: VA | S108: 3 | AC108: 1104 | AE108: Humbaur | AG108: verkauft Motor +Antrieb von 2006
A109: Joachim (Jokabe) | C109: =IF(D109="",9999,IF(D109=802,2600,IF(D109<1000,D109*10,D109))) -> 2152 | D109: 2152 | E109: BK | F109: 2002 | G109: 1 | H109: Merc | I109: 5 | J109: L | K109: V | L109: V8 | M109: 220 | N109: alpha one | O109: Gen II | P109: 1:1,47 | Q109: Black Max | R109: Alu | S109: 3 | T109: 14.5 | U109: 19 | V109: 78 | W109: 41 | X109: 4600 | Y109: GPS | Z109: 1,0 | AA109: 20-25 | AB109: errechn. | AC109: 1550 | AD109: 1800 | AE109: Wick | AF109: 2700 | AG109: verkauft
A110: Arne (Aze) | B110: 31162 | C110: =IF(D110="",9999,IF(D110=802,2600,IF(D110<1000,D110*10,D110))) -> 2152 | D110: 2152 | E110: Capri | F110: 2000 | G110: 1 | H110: Merc | I110: 4.3 | J110: L | K110: V | L110: 6 | M110: 190 | N110: alpha one | O110: Gen II | P110: 1:1,62 | R110: Alu | S110: 3 | T110: 14 | U110: 19 | V110: 69 | Y110: GPS | AC110: 1398 | AE110: Grundmeier | AF110: 2000 | AG110: 14/h Durschnittsverbrauch
A111: Valentin Thiele (Da_Valle) | B111: 44807 | C111: =IF(D111="",9999,IF(D111=802,2600,IF(D111<1000,D111*10,D111))) -> 2152 | D111: 2152 | E111: Capri | F111: 2002 | G111: 1 | H111: Merc | I111: 5 | K111: V | L111: V8 | M111: 230 | N111: alpha one | Q111: Mercury Vengeance | S111: 3 | V111: 67 | W111: 36 | Y111: GPS | Z111: 0,6 | AC111: 1500 | AD111: 1700
A112: Marc (Mac-Fly) | B112: 49 | C112: =IF(D112="",9999,IF(D112=802,2600,IF(D112<1000,D112*10,D112))) -> 2155 | D112: 2155 | E112: SB | F112: 1988 | G112: 1 | H112: OMC | I112: 5 | K112: V | L112: V8 | N112: OMC | O112: Cobra | Q112: Enertia | R112: VA | S112: 3 | T112: 14,5 | U112: 17
A113: Maik (Schnipsy) | B113: 86xxx | C113: =IF(D113="",9999,IF(D113=802,2600,IF(D113<1000,D113*10,D113))) -> 2155 | D113: 2155 | E113: SB | F113: 1989 | G113: 1 | H113: MB | I113: 3 | L113: 6 | M113: 177 | N113: Volvo | O113: DP 290 | S113: 3 | AG113: Motor OM 606 Turbo Diesel
A114: Stephan (sabberlatz) | C114: =IF(D114="",9999,IF(D114=802,2600,IF(D114<1000,D114*10,D114))) -> 2155 | D114: 2155 | E114: SB | F114: 2005 | G114: 1 | H114: OMC | I114: 5.8 | K114: V | L114: V8 | M114: 268 | S114: 3 | AE114: L 2000
A115: Achim Schlöffel (ars 71) | B115: 81739 | C115: =IF(D115="",9999,IF(D115=802,2600,IF(D115<1000,D115*10,D115))) -> 2250 | D115: 2250 | E115: Cobra | F115: 1988 | G115: 1 | H115: OMC | I115: 5.7 | K115: V | L115: 8 | M115: 230 | N115: OMC | O115: Cobra | R115: Alu | S115: 3 | T115: 15 | U115: 19 | V115: 75 | X115: 4400 | Y115: GPS | AC115: 1045 | AE115: Harbeck | AF115: 2500
A116: Sirko (Virgin) | C116: =IF(D116="",9999,IF(D116=802,2600,IF(D116<1000,D116*10,D116))) -> 2255 | D116: 2255 | E116: CS | F116: 1990 | G116: 1 | H116: Merc | I116: 5 | J116: LX | K116: V | L116: V8 | M116: 230 | N116: alpha one | O116: Gen II | P116: 1:1,62 | Q116: Mirage Plus | R116: VA | S116: 3 | T116: 15.5 | U116: 17 | V116: 65 | X116: 4700 | Y116: GPS | Z116: 1 | AB116: DFM | AC116: 2100
A117: Martin (Dampf 21067) | B117: 59581 | C117: =IF(D117="",9999,IF(D117=802,2600,IF(D117<1000,D117*10,D117))) -> 2255 | D117: 2255 | E117: CS | F117: 1991 | G117: 1 | H117: Merc | I117: 4.3 | J117: MPI | K117: E | L117: V6 | M117: 220 | N117: alpha one | O117: Gen II | P117: 1:1,81 | S117: 3
A118: Claudio Pantano (pcitalo) | B118: 67459 | C118: =IF(D118="",9999,IF(D118=802,2600,IF(D118<1000,D118*10,D118))) -> 2255 | D118: 2255 | F118: 1991 | G118: 1 | H118: Merc | I118: 4.3 | K118: V | L118: V6 | M118: 205 | N118: alpha one | R118: Alu | S118: 3 | T118: 15 | V118: 64 | X118: 4800 | Y118: GPS | AC118: 1700 | AD118: 2200
A119: Heiko (heikow) | B119: 32429 | C119: =IF(D119="",9999,IF(D119=802,2600,IF(D119<1000,D119*10,D119))) -> 2255 | D119: 2255 | F119: 1991 | G119: 1 | H119: Merc | I119: 4.3 | K119: V | L119: V6 | M119: 190 | N119: alpha one | O119: Gen II | R119: Alu | S119: 3 | AC119: 2100 | AE119: Harbeck | AF119: BT2500.1
A120: Andre (Bayliner 2255 NRW) | C120: =IF(D120="",9999,IF(D120=802,2600,IF(D120<1000,D120*10,D120))) -> 2255 | D120: 2255 | F120: 1993 | G120: 1 | H120: Merc | I120: 4.3 | K120: V | L120: V6 | M120: 205 | N120: alpha one | AC120: 1790 | AE120: Fiberline | AF120: 2500
A121: Wolf (Wolf Lübeck) | B121: 23558 | C121: =IF(D121="",9999,IF(D121=802,2600,IF(D121<1000,D121*10,D121))) -> 2352 | D121: 2352 | E121: LX | F121: 2000 | G121: 1 | H121: Merc | I121: 5.7 | K121: V | L121: V8 | M121: 270 | N121: alpha one | O121: Gen I | R121: Alu | S121: 3 | W121: 34 | X121: 5100 | Y121: GPS
A122: Serkan (Seralex) | B122: 40489 | C122: 2352 | D122: 2352 | F122: 2000 | G122: 1 | H122: Merc | I122: 5.7 | K122: V | L122: V8 | M122: 250 | N122: alpha one | O122: Gen II | P122: 1:1,62 | Q122: Revolution 4 | R122: VA | S122: 4 | T122: 14.6 | U122: 19
A123: Danny (Danman) | C123: =IF(D123="",9999,IF(D123=802,2600,IF(D123<1000,D123*10,D123))) -> 2352 | D123: 2352 | E123: LX | F123: 2001 | G123: 1 | H123: Merc | I123: 5.7 | J123: LX | K123: V | L123: V8 | M123: 250 | N123: alpha one | O123: Gen II | Q123: Revollution 4 | R123: VA | S123: 4 | U123: 17 | V123: 65 | X123: 4400 | Y123: Tacho | AG123: Boot verkauft
A124: Heinz-Jürgen (Chanor) | C124: =IF(D124="",9999,IF(D124=802,2600,IF(D124<1000,D124*10,D124))) -> 2352 | D124: 2352 | F124: 1999 | G124: 1 | H124: Merc | I124: 5 | L124: V8 | M124: 220 | N124: alpha one | O124: Gen II | R124: VA | S124: 3 | T124: 14.75 | U124: 17 | V124: 68 | X124: 4800 | AA124: 22-28 | AC124: 1900 | AE124: Harbeck | AF124: 2700
A125: Norbert (Noansee) | C125: =IF(D125="",9999,IF(D125=802,2600,IF(D125<1000,D125*10,D125))) -> 2355 | D125: 2355 | E125: Cier | F125: 1995 | G125: 1 | H125: Merc | I125: 4.3 | K125: V | L125: V6 | M125: 205 | N125: alpha one | O125: Gen II | R125: Alu | S125: 3 | T125: 14.5 | U125: 19 | V125: 60 | X125: 4500 | Y125: GPS
A126: Torsten (Wuchhter) | C126: =IF(D126="",9999,IF(D126=802,2600,IF(D126<1000,D126*10,D126))) -> 2355 | D126: 2355 | E126: SE | F126: 1998 | G126: 1 | H126: Merc | I126: 5.7 | K126: V | L126: V8 | M126: 260 | N126: alpha one | O126: Gen II | Q126: Alpha4 | R126: Alu | S126: 4 | T126: 16 | U126: 16 | V126: 67 | X126: 4500 | Y126: GPS | AC126: 2300 | AD126: 2800 | AE126: Juros | AF126: 3000
A127: Chance 07 | B127: 12 | C127: =IF(D127="",9999,IF(D127=802,2600,IF(D127<1000,D127*10,D127))) -> 2355 | D127: 2355 | F127: 1994 | G127: 1 | H127: Merc | I127: 4.3 | L127: V6 | M127: 170 | N127: Z | S127: 3 | Z127: 1,0 | AC127: 2800 | AE127: Brenderup
A128: Daniel (Schille) | B128: 79279 | C128: =IF(D128="",9999,IF(D128=802,2600,IF(D128<1000,D128*10,D128))) -> 2355 | D128: 2355 | F128: 1996 | G128: 1 | H128: Merc. | I128: 5.7 | K128: V | L128: V8 | M128: 260 | N128: alpha one | O128: Gen II | R128: Alu | S128: 3 | T128: 16 | U128: 16 | V128: 60 | X128: 4500 | Y128: GPS | AE128: Ohlmeier | AF128: MT3500
A129: Micha (2355) | B129: 16515 | C129: =IF(D129="",9999,IF(D129=802,2600,IF(D129<1000,D129*10,D129))) -> 2355 | D129: 2355 | F129: 1996 | G129: 1 | H129: Merc | I129: 4.3 | K129: V | L129: V6 | M129: 205 | N129: alpha one | O129: Gen II | R129: ALU | S129: 3 | AC129: 2005
A130: Sascha (Sascha) | B130: 22523 | C130: =IF(D130="",9999,IF(D130=802,2600,IF(D130<1000,D130*10,D130))) -> 2355 | D130: 2355 | F130: 1996 | G130: 1 | H130: Merc | I130: 4.3 | J130: LX | K130: V | L130: 6 | M130: 190 | N130: alpha one | O130: Gen II | Q130: Black Max | R130: ALU | S130: 3 | T130: 14,5 | U130: 19 | V130: 60 | X130: 4800 | Y130: GPS | AA130: 15-18 | AB130: errechn. | AE130: Neelbach | AF130: 2700 | AG130: Verbrauch bei Mischnutzung
A131: Ralf Wesch (Ralf 1887) | B131: 33415 | C131: 2355 | D131: 2355 | F131: 1997 | G131: 1 | H131: Merc | I131: 5.7 | K131: V | L131: 8 | M131: 260 | N131: alpha one | O131: Gen II | R131: ALU | S131: 3 | T131: 16 | U131: 16 | AE131: Brenderup | AF131: 3500
A132: Holger (Sokures) | C132: =IF(D132="",9999,IF(D132=802,2600,IF(D132<1000,D132*10,D132))) -> 2450 | D132: 2450 | E132: Cier | F132: 1986 | G132: 1 | H132: VP | I132: 5 | K132: V | L132: V8 | M132: 225 | N132: VP280 | Q132: Duoprop | R132: Alu | S132: 3 | AD132: 2700 | AE132: Wick | AF132: 3500
A133: Jörg (Bay245) | C133: =IF(D133="",9999,IF(D133=802,2600,IF(D133<1000,D133*10,D133))) -> 2450 | D133: 245 | E133: SB | F133: 2003 | G133: 1 | H133: Merc | I133: 5 | K133: V | L133: V8 | M133: 220 | N133: alpha one | O133: Gen II | Q133: Alpha4 | R133: Alu | S133: 4 | T133: 15 | U133: 16 | V133: 60 | X133: 4800 | AA133: 38 | AB133: ep-60r | AG133: Boot verkauft
A134: Ralf (Polierpabst) | C134: =IF(D134="",9999,IF(D134=802,2600,IF(D134<1000,D134*10,D134))) -> 2450 | D134: 245 | E134: SB | F134: 2005 | G134: 1 | H134: Merc | I134: 5 | K134: E | L134: V8 | M134: 250 | N134: alpha one | O134: GenII | R134: Alu | S134: 3 | AE134: Saftytrailer
A135: Martin (navigat) | B135: 31 | C135: =IF(D135="",9999,IF(D135=802,2600,IF(D135<1000,D135*10,D135))) -> 2450 | D135: 245 | E135: SB | F135: 2006 | G135: 1 | H135: Merc | I135: 5 | J135: TKS | K135: V | L135: V8 | M135: 220 | N135: alpha one | O135: Gen II | P135: 1:1,47 | Q135: Black Max | R135: Alu | S135: 3 | T135: 16 | U135: 16 | X135: 4800 | AE135: Ohlmeier | AF135: MT3500
A136: Bernhard (Bernhard6) | B136: A-6060 | C136: =IF(D136="",9999,IF(D136=802,2600,IF(D136<1000,D136*10,D136))) -> 2450 | D136: 245 | E136: SB | F136: 2006 | G136: 1 | H136: Merc | I136: 5 | J136: MPI | K136: E | L136: V8 | M136: 260 | N136: Bravo 3 | Q136: Duoprop | R136: VA | S136: 3 | V136: 66 | X136: 4600 | Y136: GPS | AC136: 2860 | AD136: 3200 | AG136: Boot verkauft
A137: Christoph (chris1003) | C137: =IF(D137="",9999,IF(D137=802,2600,IF(D137<1000,D137*10,D137))) -> 2450 | D137: 245 | E137: SB | F137: 2007 | G137: 1 | H137: Merc | I137: 5 | J137: MPI | L137: V8 | M137: 260 | N137: Bravo 3 | Q137: Duoprop | R137: VA | S137: 3 | V137: 61 | X137: 4500 | Y137: GPS | AA137: 28 | AB137: errechn. | AC137: 2500 | AD137: 3000
A138: Bernd (schleipfi) | B138: 45966 | C138: 2450 | D138: 245 | F138: 2003 | G138: 1 | H138: Merc | I138: 5.7 | L138: V8 | M138: 350 | N138: Bravo | S138: 3 | AE138: Steinbacher
A139: Herbert (Herbert91710) | C139: =IF(D139="",9999,IF(D139=802,2600,IF(D139<1000,D139*10,D139))) -> 2450 | D139: 245 | F139: 2008 | G139: 1 | H139: Merc | I139: 5 | K139: V | L139: V8 | M139: 220 | N139: alpha one | O139: GenII | P139: 1:1,63 | Q139: Alpha4 | R139: Alu | S139: 4 | T139: 15 | U139: 16 | X139: 4400 | Z139: 1.2 | AC139: 2480 | AD139: 2760
A140: SasEis Bootanik | B140: 26188 | C140: 2490 | D140: 249 | E140: SD | F140: 2006 | G140: 1 | H140: Merc | I140: 5 | J140: MPI | K140: E | L140: V8 | M140: 260 | N140: alpha one | O140: GenII | Q140: Vengeance | R140: VA | S140: 3 | T140: 13.75 | U140: 21 | V140: 68 | X140: 4200 | Y140: GPS | AA140: 25 | AB140: ges. | AC140: 2100 | AD140: 2500 | AE140: Sigma | AF140: 2500 Comfort
A141: Bodo (Bullauge) | B141: 48432 | C141: =IF(D141="",9999,IF(D141=802,2600,IF(D141<1000,D141*10,D141))) -> 2452 | D141: 2452 | E141: 1 | G141: 1 | H141: Merc | I141: 5 | N141: alpha one | O141: GenII | S141: 3
A142: Andre Lardy (A.Lardy) | B142: 10319 | C142: =IF(D142="",9999,IF(D142=802,2600,IF(D142<1000,D142*10,D142))) -> 2452 | D142: 2452 | E142: Ciera | F142: 1997 | G142: 1 | H142: Merc | I142: 5.7 | K142: V | L142: V8 | M142: 260 | N142: alpha one | O142: GenII | S142: 3 | V142: 40 | X142: 3800 | Y142: GPS | Z142: 1,1 | AB142: gemessen | AC142: 3200 | AD142: 3600 | AG142: steht nicht mehr zur Verfügung
A143: Thomas (Yodajunior) | C143: =IF(D143="",9999,IF(D143=802,2600,IF(D143<1000,D143*10,D143))) -> 2455 | D143: 2455 | E143: Cier | F143: 2004 | G143: 1 | H143: Merc | I143: 5.7 | J143: E | K143: MPI | L143: V8 | M143: 300 | N143: Bravo 3 | Q143: Duoprop | R143: VA | S143: 3 | U143: 21 | V143: 68 | X143: 4900 | Y143: GPS | AA143: 25 | AB143: errechn. | AC143: 2500 | AD143: 3000 | AE143: Diefenbach | AF143: Doppel T 3500
A144: Marcel Zaluskowski (marcelzalus) | B144: 35745 | C144: =IF(D144="",9999,IF(D144=802,2600,IF(D144<1000,D144*10,D144))) -> 2455 | D144: 2455 | F144: 1989 | G144: 1 | H144: OMC | I144: 5.7 | K144: V | L144: V8 | M144: 260 | N144: OMC Cobra | S144: 3 | AG144: Boot in Restauration
A145: Meik (Meik 2016) | B145: 19323 | C145: =IF(D145="",9999,IF(D145=802,2600,IF(D145<1000,D145*10,D145))) -> 2455 | D145: 2455 | G145: 1 | H145: Merc | I145: 5.7 | K145: V | L145: V8 | M145: 250 | N145: Bravo II | S145: 3 | V145: 60 | X145: 4800 | Y145: GPS
A146: Rasmus (Kinsteerer) | B146: 65428 | C146: 2556 | D146: 2556 | E146: Ciera Command | F146: 1987 | G146: 1 | H146: Merc | I146: 5.7 | J146: MPI | K146: E | L146: V8 | M146: 330 | N146: BravoIII | Q146: Duoprop | R146: VA | S146: 3 | V146: 50 | X146: 4000 | Y146: GPS | AC146: 2700
A147: Thomas (Trollingtom) | C147: =IF(D147="",9999,IF(D147=802,2600,IF(D147<1000,D147*10,D147))) -> 2556 | D147: 2556 | E147: Fly | F147: 1992 | G147: 1 | H147: Merc | I147: 5 | J147: MPI | K147: E | L147: V8 | M147: 260 | N147: Bravo | O147: 3 | Q147: Duoprop | R147: VA | S147: 3 | W147: 30 | Y147: GPS | AA147: 25 | AB147: DFM | AC147: 2800 | AD147: 3400
A148: Kai Neugebauer (Black Mizi) | B148: 91207 | C148: =IF(D148="",9999,IF(D148=802,2600,IF(D148<1000,D148*10,D148))) -> 2556 | D148: 2556 | F148: 1993 | G148: 1 | H148: D219 | L148: 6 | M148: 180 | N148: Bravo | O148: Gen 1 | S148: 3 | Z148: 1 | AB148: ges | AC148: 2900
A149: Armin (ich 299) | C149: =IF(D149="",9999,IF(D149=802,2600,IF(D149<1000,D149*10,D149))) -> 2600 | D149: 802 | F149: 2012 | G149: 1 | H149: Merc | I149: 5.7 | J149: MAG | M149: 300 | N149: Bravo 3 | P149: 1:2,2 | Q149: Duoprop | U149: 24 | AA149: 32 | AB149: DFM | AC149: 2100 | AD149: 2500 | AE149: Harbeck | AF149: 3000
A150: Dirk (d.s.-walldorf) | C150: =IF(D150="",9999,IF(D150=802,2600,IF(D150<1000,D150*10,D150))) -> 2650 | D150: 265 | E150: CS | F150: 2001 | G150: 1 | H150: Merc | I150: 5.7 | K150: E | L150: V8 | N150: Bravo 3 | Q150: Duoprop | S150: 3 | AE150: US Trailer
A151: Alex (Realex) | C151: =IF(D151="",9999,IF(D151=802,2600,IF(D151<1000,D151*10,D151))) -> 2650 | D151: 265 | E151: SB | F151: 2006 | G151: 1 | H151: Merc | I151: 5 | K151: V | L151: V8 | M151: 220 | N151: alpha one | O151: Gen II | P151: 1:1,7 | Q151: Black Max | R151: Alu | S151: 3 | T151: 16 | U151: 16 | V151: 53 | X151: 4200 | Y151: GPS | AC151: 2750 | AD151: 3200 | AG151: verkauft
A152: Tobias (Robert vom Neckar) | C152: =IF(D152="",9999,IF(D152=802,2600,IF(D152<1000,D152*10,D152))) -> 2650 | D152: 265 | F152: 2003 | G152: 1 | H152: Merc | I152: 5 | K152: E | L152: V8 | M152: 260 | N152: Bravo 3 | R152: VA | S152: 3 | T152: 26 | V152: 56 | Y152: GPS | AC152: 2900 | AD152: 3260
A153: Lutz (B4-Skipper) | B153: 12439 | C153: =IF(D153="",9999,IF(D153=802,2600,IF(D153<1000,D153*10,D153))) -> 2651 | D153: 2651 | E153: CS | F153: 1990 | G153: 1 | H153: Merc | I153: 5 | J153: LX | K153: V | L153: V8 | M153: 225 | N153: alpha one | O153: Gen II | Q153: Black Max | R153: Alu | S153: 3 | T153: 16 | U153: 16 | V153: 50
A154: Andree (LairoNor) | C154: =IF(D154="",9999,IF(D154=802,2600,IF(D154<1000,D154*10,D154))) -> 2651 | D154: 2651 | E154: CS | F154: 1990 | G154: 1 | H154: Merc | I154: 5 | K154: V | L154: V8 | M154: 230 | N154: alpha one | O154: Gen I | R154: Alu | S154: 3 | T154: 16 | U154: 16
A155: Andi (hx4fun) | C155: =IF(D155="",9999,IF(D155=802,2600,IF(D155<1000,D155*10,D155))) -> 2651 | D155: 2651 | E155: CS | F155: 1990 | G155: 1 | H155: Merc | I155: 5.7 | K155: V | L155: V8 | M155: 260 | N155: alpha one | O155: Gen II | Q155: Black Max | R155: Alu | S155: 3 | T155: 16 | U155: 16 | V155: 62 | X155: 4600 | Y155: GPS | Z155: 1.4 | AA155: 25-60 | AB155: erfahren | AC155: 2800 | AD155: 3200
A156: Ihno Zimmermann (PaulAner) | B156: 33318 | C156: =IF(D156="",9999,IF(D156=802,2600,IF(D156<1000,D156*10,D156))) -> 2651 | D156: 2651 | E156: SB | F156: 1990 | G156: 1 | H156: Merc | I156: 5.7 | J156: MAG | K156: E | L156: V8 | M156: 300 | N156: Bravo3 | V156: 65 | X156: 5000 | Y156: GPS | AA156: 25
A157: Thorsten (TC) | C157: =IF(D157="",9999,IF(D157=802,2600,IF(D157<1000,D157*10,D157))) -> 2655 | D157: 2655 | E157: C | F157: 1988 | G157: 1 | H157: OMC | I157: 5.7 | K157: V | L157: 8 | M157: 260 | N157: OMC | O157: Cobra | R157: VA | S157: 3 | T157: 15.5 | U157: 14 | AC157: 3000 | AD157: 4000 | AG157: verkauft
A158: Frank (FrankS) | C158: =IF(D158="",9999,IF(D158=802,2600,IF(D158<1000,D158*10,D158))) -> 2655 | D158: 2655 | E158: SB | F158: 1991 | G158: 1 | H158: Merc | I158: 5 | J158: LX | K158: V | L158: V8 | M158: 230 | N158: alpha one | O158: Gen I | R158: Alu | S158: 3 | T158: 16 | U158: 16 | AE158: Steinbacher
A159: Yvonne (Bayliner 2655_KN) | C159: =IF(D159="",9999,IF(D159=802,2600,IF(D159<1000,D159*10,D159))) -> 2655 | D159: 2655 | E159: SB | F159: 1992 | G159: 1 | H159: Merc | I159: 5.7 | K159: V | L159: V8 | M159: 260 | N159: alpha one | O159: Gen II | Q159: Mirage Plus | R159: VA | S159: 3 | T159: 17 | U159: 15 | V159: 60 | X159: 4200 | AC159: 2998 | AD159: 3200 | AE159: Sigma Eco | AF159: 3500
A160: Holger (Hatti R) | B160: 93047 | C160: 2655 | D160: 2655 | E160: SB | F160: 1992 | G160: 1 | H160: Merc | I160: 5.7 | J160: Vortec | K160: V | L160: V8 | M160: 300 | N160: alpha one | O160: Gen II | Q160: High 5 | R160: VA | S160: 5 | U160: 19 | V160: 65 | X160: 4200 | Y160: GPS
A161: Thomas (tom03) | C161: =IF(D161="",9999,IF(D161=802,2600,IF(D161<1000,D161*10,D161))) -> 2655 | D161: 2655 | E161: SB | F161: 1992 | G161: 1 | H161: Merc | I161: 5 | J161: LX | K161: V | L161: V8 | M161: 230 | N161: alpha one | O161: Gen II | P161: 1:1,62 | Q161: Enertia | U161: 16 | X161: 4700 | Z161: 1.25
A162: Torsten (Todo) | B162: 23556 | C162: =IF(D162="",9999,IF(D162=802,2600,IF(D162<1000,D162*10,D162))) -> 2655 | D162: 2655 | E162: SE | F162: 1998 | G162: 1 | H162: Merc | I162: 5.7 | J162: LX | K162: V | L162: V8 | M162: 260 | N162: alpha one | Q162: Duoprop | S162: 3
A163: Norbert (Nobbys) | B163: 28876 | C163: =IF(D163="",9999,IF(D163=802,2600,IF(D163<1000,D163*10,D163))) -> 2655 | D163: 2655 | F163: 1996 | G163: 1 | H163: Merc | I163: 5 | L163: V8 | M163: 230 | N163: alpha one | O163: Gen II | S163: 4 | X163: 4200
A164: Alex (alex306) | B164: 42799 | C164: 2655 | D164: 2655 | E164: C | F164: 1996 | G164: 1 | H164: Merc | I164: 5.7 | K164: V | L164: V8 | M164: 230 | N164: alpha one | O164: Gen II | R164: Alu | S164: 3 | T164: 17 | U164: 17 | V164: 60 | X164: 4400 | Y164: GPS | AC164: 2550 | AD164: 2630 | AE164: Pilob | AF164: 3500 | AG164: urlaubsfertig mit Schlauchboot und Gepäck +50L Benzin
A165: Wolf (Vargtimmen) | C165: =IF(D165="",9999,IF(D165=802,2600,IF(D165<1000,D165*10,D165))) -> 2655 | D165: 2655 | F165: 1998 | G165: 1 | H165: Merc | I165: 5.7 | K165: V | L165: V8 | M165: 260 | N165: alpha one | O165: Gen II | Q165: Black Max | R165: Alu | S165: 3 | T165: 16 | U165: 16 | V165: 50 | W165: 27 | X165: 4200 | Y165: GPS
A166: Klaus-Peter (capuchino) | B166: 38678 | C166: 2655 | D166: 2655 | F166: 1998 | G166: 1 | H166: Merc | I166: 5 | K166: V | L166: V8 | M166: 230 | N166: alpha one | O166: Gen II | R166: Alu | S166: 4 | T166: 14 | U166: 20 | AE166: Wick | AF166: 3500
A167: Stefan (Stefan-HL) | B167: 23569 | C167: =IF(D167="",9999,IF(D167=802,2600,IF(D167<1000,D167*10,D167))) -> 2655 | D167: 2655 | F167: 2002 | G167: 1 | H167: Merc. | I167: 5 | J167: MPI | K167: E | L167: V8 | M167: 260 | N167: Bravo 3 | Q167: Duoprop | S167: 3 | AC167: 3000
A168: Uwe Schnorr (U.Schnorr) | B168: 47929 | C168: 2750 | D168: 275 | E168: SB | F168: 2004 | G168: 1 | H168: Merc | I168: 5.7 | K168: E | L168: V8 | M168: 300 | N168: Bravo 3 | R168: Alu | S168: 3 | W168: 55 | X168: 4000 | Y168: GPS | AC168: 2850 | AD168: 3150
A169: Jörg (jog964) | C169: =IF(D169="",9999,IF(D169=802,2600,IF(D169<1000,D169*10,D169))) -> 2750 | D169: 275 | E169: SB | F169: 2007 | G169: 1 | H169: Merc | I169: 5.7 | K169: E | L169: V8 | M169: 300 | N169: Bravo 3 | Q169: Duoprop | R169: VA | S169: 3 | V169: 70 | W169: 38 | X169: 4300 | Y169: GPS | Z169: 2 | AA169: 22 | AB169: geschätzt | AC169: 2950 | AD169: 3800
A170: Ulf (lukas2409) | B170: 14476 | C170: =IF(D170="",9999,IF(D170=802,2600,IF(D170<1000,D170*10,D170))) -> 2755 | D170: 2755 | E170: Ciera | F170: 1989 | G170: 1 | H170: OMC | I170: 5.8 | K170: V | L170: V8 | M170: 230 | N170: OMC Cobra | R170: Alu | S170: 3 | T170: 14 | U170: 19 | V170: 52 | X170: 4200 | Y170: GPS | AC170: 2700 | AE170: Ohlmeier | AF170: MT3000
A171: Frank (Bleeder) | C171: =IF(D171="",9999,IF(D171=802,2600,IF(D171<1000,D171*10,D171))) -> 2755 | D171: 2755 | E171: CS | F171: 1990 | G171: 1 | H171: Merc | I171: 1.7 | J171: DTI | K171: E | L171: 4 | M171: 120 | N171: alpha one | O171: Gen II | P171: 1:1,81 | Q171: Rubex | R171: Alu | S171: 4 | T171: 14,25 | U171: 19 | V171: 15 | X171: 2600 | Y171: GPS | Z171: 0,3 | AA171: 3 | AB171: errechn. | AG171: Motorumbau auf Diesel; nur noch Verdrängerfahrt möglich
A172: Frank (sanmarino) | C172: =IF(D172="",9999,IF(D172=802,2600,IF(D172<1000,D172*10,D172))) -> 2755 | D172: 2755 | E172: CS | F172: 1990 | G172: 1 | H172: Merc | I172: 5.7 | J172: LX | K172: V | L172: V8 | M172: 260 | N172: alpha one | O172: Gen II | Q172: Black Max | R172: Alu | S172: 3 | T172: 16 | U172: 16 | V172: 52 | X172: 4400 | Y172: GPS | Z172: 1,4 | AB172: errechn. | AC172: 2850 | AD172: 3900 | AG172: verkauft
A173: Rene (kroeniboot) | B173: 17337 | C173: =IF(D173="",9999,IF(D173=802,2600,IF(D173<1000,D173*10,D173))) -> 2755 | D173: 2755 | E173: CS | F173: 1992 | G173: 1 | H173: Merc | I173: 5.7 | K173: V | L173: V8 | M173: 260 | N173: alpha one | O173: Gen II | P173: 1:1,5 | Q173: Revollution 4 | R173: VA | S173: 4 | T173: 14.625 | U173: 17 | V173: 63 | X173: 4250 | Y173: GPS | AE173: Kroenert | AF173: MBK 3500 | AG173: Vmax Alpha 4 /15x16 4800rpm=61km/h
A174: Manfred (knuffel) | C174: =IF(D174="",9999,IF(D174=802,2600,IF(D174<1000,D174*10,D174))) -> 2755 | D174: 2755 | E174: CS | F174: 1993 | G174: 1 | H174: Merc | I174: 5.7 | K174: V | L174: V8 | M174: 260 | N174: alpha one | O174: Gen II | Q174: Black Max | R174: Alu | S174: 3 | T174: 19 | V174: 70 | W174: 39 | Y174: GPS
A175: Michael (cbr954) | B175: 07318 | C175: =IF(D175="",9999,IF(D175=802,2600,IF(D175<1000,D175*10,D175))) -> 2755 | D175: 2755 | F175: 1991 | G175: 1 | H175: Merc | I175: 5.7 | J175: LX | K175: V | L175: V8 | M175: 260 | N175: alpha one | O175: Gen II | R175: Alu | S175: 3 | T175: 16 | U175: 16 | V175: 55 | X175: 4800 | Y175: GPS | Z175: 1 | AB175: ges | AE175: Steibacher | AF175: 3,5to.
A176: Mark (icewolfm) | C176: =IF(D176="",9999,IF(D176=802,2600,IF(D176<1000,D176*10,D176))) -> 2850 | D176: 2850 | E176: CS | F176: 1989 | G176: 1 | H176: OMC | I176: 7.5 | K176: V | L176: V8 | M176: 330 | N176: OMC | O176: King Cobra | Q176: Revollution 4 | R176: VA | S176: 4 | T176: 14.625 | U176: 17 | V176: 63 | X176: 4300 | Y176: GPS | AC176: 3500 | AD176: 4500
A177: Jörg (Bay 245) | C177: =IF(D177="",9999,IF(D177=802,2600,IF(D177<1000,D177*10,D177))) -> 2850 | D177: 285 | E177: SB | F177: 2004 | G177: 1 | H177: Merc | J177: MPI | K177: E | L177: V8 | M177: 300 | N177: Bravo 3 | Q177: Duoprop | U177: 22
A178: Lothar Wiese (Meadow) | B178: 36304 | C178: =IF(D178="",9999,IF(D178=802,2600,IF(D178<1000,D178*10,D178))) -> 2850 | D178: 285 | E178: SB | F178: 2005 | G178: 1 | H178: Merc | J178: MPI | K178: E | L178: 8 | M178: 350 | N178: Bravo 3 | P178: 1:2,2 | Q178: Duoprop | R178: VA | S178: 3 | T178: 48 | U178: 22 | Z178: 1,2 | AC178: 3200 | AD178: 4800 | AE178: Stöger | AF178: 4000 | AG178: Trailer Ringkupplung
A179: Alexander (Alex) | B179: 8990 | C179: =IF(D179="",9999,IF(D179=802,2600,IF(D179<1000,D179*10,D179))) -> 2850 | D179: 285 | E179: SB | F179: 2005 | G179: 1 | H179: Merc | I179: 5.7 | J179: 350MPI | K179: E | L179: V8 | M179: 300 | N179: Bravo 3 | Q179: Duoprop | R179: VA | S179: 2x3 | T179: 14.25 | U179: 22 | V179: 58 | X179: 4800 | Y179: GPS | Z179: 1,1 | AB179: Monitor
A180: Gerd (Gerd-RS) | C180: =IF(D180="",9999,IF(D180=802,2600,IF(D180<1000,D180*10,D180))) -> 2850 | D180: 285 | E180: SB | F180: 2007 | G180: 1 | H180: Merc | I180: 383 Stroker | J180: MPI | L180: V8 | M180: 350 | N180: Bravo 3 | P180: 1:2,2 | Q180: Duoprop | R180: VA | S180: 3 | T180: 48 | U180: 22 | W180: 36 | X180: 5000 | Z180: 1.3 | AB180: smartcraft | AC180: 3260 | AD180: 5000 | AG180: verkauft
A181: Steve (Landstorfer) | C181: =IF(D181="",9999,IF(D181=802,2600,IF(D181<1000,D181*10,D181))) -> 2855 | D181: 2855 | E181: Cier | F181: 1991 | G181: 1 | H181: Merc | I181: 7.4 | K181: V | L181: V8 | M181: 330 | N181: alpha one | P181: 1:1,87 | Q181: Black Max | R181: Alu | S181: 3 | V181: 70
A182: Sven (sven71) | B182: 14612 | C182: =IF(D182="",9999,IF(D182=802,2600,IF(D182<1000,D182*10,D182))) -> 2855 | D182: 2855 | E182: CL | F182: 1994 | G182: 1 | H182: Merc | I182: 5.7 | K182: V | L182: V8 | M182: 260 | N182: alpha one | O182: Gen II | R182: VA | S182: 3 | U182: 16
A183: Volker (Billi) | C183: =IF(D183="",9999,IF(D183=802,2600,IF(D183<1000,D183*10,D183))) -> 2855 | D183: 2855 | E183: CS | F183: 1996 | G183: 1 | H183: Merc | I183: 7.4 | K183: V | L183: V8 | M183: 330 | N183: Bravo 3 | R183: VA | S183: 3 | U183: 22 | V183: 66 | X183: 4400 | Y183: GPS | Z183: 1.3 | AB183: errechn. | AC183: 3500 | AD183: 4150 | AG183: am Kran mit 3/4 Tankfüllung und Gepäck
A184: Wolfgang (Tanja 2) | C184: =IF(D184="",9999,IF(D184=802,2600,IF(D184<1000,D184*10,D184))) -> 2855 | D184: 2855 | E184: CS | F184: 1999 | G184: 1 | H184: Merc | I184: 7.4 | J184: MPI | K184: V | L184: V8 | M184: 330 | N184: Bravo 3 | Q184: Duoprop | R184: VA | V184: 65 | Y184: GPS | Z184: 1.3 | AB184: errechn. | AC184: 3500 | AD184: 4200
A185: Andreas Ateupert | B185: 96126 | C185: 2855 | D185: 2855 | F185: 2000 | G185: 1 | H185: Merc | I185: 7.4 | J185: MPI | K185: E | L185: V8 | M185: 330 | N185: Bravo 3 | Q185: Duoprop | R185: VA | S185: 3 | V185: 65 | Z185: 1.3 | AB185: Anzeige | AC185: 3500 | AD185: 4300
A186: Joachim Joachim 85 | B186: 72644 | C186: 2855 | D186: 2855 | E186: SI | F186: 2000 | G186: 1 | H186: Merc | I186: 7.4 | J186: MPI | K186: E | L186: V8 | M186: 310 | N186: Bravo 3 | S186: 3 | V186: 55 | X186: 4400 | Z186: 1.2 | AB186: errechnet
A187: Christian (atzewartmann) | B187: 06406 | C187: =IF(D187="",9999,IF(D187=802,2600,IF(D187<1000,D187*10,D187))) -> 2855 | D187: 2855 | E187: SB | F187: 1988 | G187: 1 | H187: OMC | I187: 7.5 | K187: V | L187: 8 | M187: 330 | N187: OMC King Cobra | R187: Alu | S187: 3 | T187: 15.5 | U187: 15 | V187: 55 | X187: 4500 | Y187: Log | Z187: 1 | AB187: ges | AC187: 3200 | AD187: 4000
A188: Stefan Landstorfer (Steve) | B188: 84061 | C188: =IF(D188="",9999,IF(D188=802,2600,IF(D188<1000,D188*10,D188))) -> 2855 | D188: 2855 | E188: ST | F188: 1992 | G188: 1 | H188: Merc | I188: 7.4 | K188: V | L188: V8 | M188: 330 | N188: Bravo 2 | P188: 1:1,87 | R188: Alu | S188: 3 | V188: 58 | X188: 4800 | Y188: GPS | AA188: 25 | AB188: errechn. | AC188: 4000 | AD188: 4600
A189: Dirk (Lohmi) | B189: 23896 | C189: 2858 | D189: 2858 | E189: CB | F189: 1994 | G189: 1 | H189: Merc | I189: 4.2 | K189: E | L189: V6 | M189: 220 | N189: alpha one | R189: Alu | S189: 3 | V189: 40 | W189: 22 | X189: 3600 | Y189: GPS | Z189: 1,3 | AA189: 52 | AB189: errechnet | AC189: 3700 | AD189: 4600
A190: Frank (trockenangler) | C190: =IF(D190="",9999,IF(D190=802,2600,IF(D190<1000,D190*10,D190))) -> 2859 | D190: 2859 | E190: CL | F190: 1998 | G190: 1 | H190: Merc | I190: 7.4 | K190: V | L190: V8 | M190: 330 | N190: Bravo 2 | Q190: Single | R190: Alu | S190: 3 | T190: 19 | U190: 18.25 | V190: 56 | X190: 4600 | Y190: GPS | Z190: 1.35 | AA190: 55 | AB190: DFM | AC190: 3455 | AD190: 4300 | AG190: verkauft, steht aber für Infos zur Verfügung
A191: Nico Caspari (neoits) | B191: 82276 | C191: =IF(D191="",9999,IF(D191=802,2600,IF(D191<1000,D191*10,D191))) -> 3055 | D191: 3055 | E191: Ciera | F191: 2000 | G191: 2 | H191: Merc | I191: 5 | K191: V | L191: V8 | M191: 220 | S191: 4 | V191: 65 | W191: 35 | X191: 4200 | Y191: GPS | AA191: 95 | AB191: ges. | AC191: 5325 | AD191: 6000
A192: Jens (Katara) | B192: 15711 | C192: =IF(D192="",9999,IF(D192=802,2600,IF(D192<1000,D192*10,D192))) -> 3055 | D192: 3055 | E192: SB | F192: 2001 | G192: 2 | H192: Merc | I192: 5.7 | J192: LX | K192: V | L192: V8 | M192: 250 | N192: Bravo II | R192: Alu | S192: 3 | V192: 78 | X192: 4800 | Y192: GPS | Z192: 2,8 | AA192: 140 | AB192: DFM | AC192: 5500 | AD192: 6500
A193: Stefan (ramazotti) | B193: 31515 | C193: 3255 | D193: 3255 | E193: SB | F193: 1988 | G193: 2 | H193: OMC | I193: 5,7 | K193: V | L193: V8 | M193: 260 | N193: Cobra | R193: Alu | S193: 3 | T193: 15 | U193: 17
A194: Martin (Mar-Tar) | C194: =IF(D194="",9999,IF(D194=802,2600,IF(D194<1000,D194*10,D194))) -> 3258 | D194: 3258 | F194: 1996 | G194: 2 | H194: Merc | I194: 7.4 | K194: V | L194: V8 | M194: 330 | N194: Bravo 3 | Q194: Duoprop | R194: VA | V194: 72 | Y194: GPS | Z194: 2.6 | AA194: 115 | AB194: errechn. | AC194: 6200 | AD194: 7800
A195: Ralf (RG69) | C195: =IF(D195="",9999,IF(D195=802,2600,IF(D195<1000,D195*10,D195))) -> 3288 | D195: 3288 | E195: Expl | F195: 1986 | G195: 2 | H195: Hino | I195: 4 | M195: 110 | N195: Welle | R195: Bronze | S195: 4 | V195: 28 | X195: 4000 | AD195: 6000
A196: Erich (Brami) | C196: =IF(D196="",9999,IF(D196=802,2600,IF(D196<1000,D196*10,D196))) -> 3988 | D196: 3988 | F196: 1998 | G196: 2 | H196: Cum | I196: 5.9 | K196: D | L196: 6 | M196: 330 | N196: Welle | R196: Bronze | S196: 4 | U196: 18 | V196: 26 | X196: 2900 | Y196: GPS | Z196: 1-3 | AA196: 15-70 | AB196: errechn. | AC196: 12000 | AD196: 13500
A197: Chris (Fritzfun) | B197: 71638 | C197: 6020 | D197: 602 | F197: 2003 | G197: 1 | H197: Merc | I197: 3 | K197: V | L197: R4 | M197: 135 | N197: alpha one | O197: GenII | S197: 3
A198: Martin | C198: 6020 | D198: 602 | E198: LV | F198: 2004 | G198: 1 | H198: ECT | I198: 4.5 | L198: 6 | M198: 250 | N198: alpha one | Q198: Enertia | S198: 3 | T198: 13.75 | U198: 20 | V198: 43 | W198: 80 | X198: 4900 | Y198: GPS | Z198: 1,7 | AA198: 28 | AB198: Merc.Smart | AC198: 1400 | AD198: 1520 | AE198: Sambo | AF198: Tandem
A199: Steffen (Nightvision) | B199: 14476 | C199: =IF(D199="",9999,IF(D199=802,2600,IF(D199<1000,D199*10,D199))) -> 6420 | D199: 642 | E199: CU | F199: 2014 | G199: 1 | H199: Merc. | I199: 3 | K199: V | L199: 4R | M199: 135 | N199: alpha one | O199: Gen II | S199: 3 | V199: 65 | X199: 4800
A200: Stefan (subba-bebbo) | B200: 85778 | C200: =IF(D200="",9999,IF(D200=802,2600,IF(D200<1000,D200*10,D200))) -> 6420 | D200: 642 | E200: CU | F200: 2014 | G200: 1 | H200: Merc. | I200: 4.3 | K200: E | L200: V6 | M200: 223 | N200: alpha one | O200: Gen II | Q200: Black Max | R200: Alu | S200: 3 | T200: 14 | U200: 21 | V200: 79 | W200: 43 | X200: 4600 | Y200: GPS | AE200: Steinbacher
A201: Peter (Piraten Pit) | B201: 47877 | C201: =IF(D201="",9999,IF(D201=802,2600,IF(D201<1000,D201*10,D201))) -> 6420 | D201: 642 | E201: CU | F201: 2014 | G201: 1 | H201: Merc | I201: 4.3 | J201: MPI | K201: E | L201: V6 | M201: 220 | N201: alpha one | S201: 4 | AE201: Ohlmeier | AF201: MT2500
A202: Steffen (Nightvision) | B202: 14476 | C202: =IF(D202="",9999,IF(D202=802,2600,IF(D202<1000,D202*10,D202))) -> 6420 | D202: 642 | E202: CU | F202: 2014 | G202: 1 | H202: Merc. | I202: 3 | K202: V | L202: 4R | M202: 135 | N202: alpha one | O202: Gen II | S202: 3 | V202: 65 | X202: 4800
... 270 more rows

Sheet Tabelle1
